{"text_format":"3","workbook":"xlsx","n_sheets":1,"sheets":["Itemized Bid Schedule"],"not_rendered":{"defined_names":2},"read":"whole","date_system":"1900"}

{"sheet":"Itemized Bid Schedule","index":0,"n_rows":47,"n_cols":7,"rows_kept":47,"merged":[[1,0,1,6],[2,0,2,6],[3,0,3,6],[4,5,4,6],[34,2,34,5],[35,2,35,5],[36,2,36,5],[37,2,37,5],[38,1,38,6],[40,1,40,6],[42,1,42,6],[43,1,43,6],[45,1,45,6]]}
[]
["ITEMIZED BID SCHEDULE"]
["PROJECT NAME: Jackie Robinson Training Complex Walking Trail"]
[" PROJECT NO. IRC-1908        BID NO.  2023012               "]
[null,"BIDDER'S NAME",{"$nulls":3},"**ADDENDUM NO. 2"]
[]
[null,"Item No.","Description","Unit","Quantity","Unit Price","Amount"]
[]
[null,"101-1","MOBILIZATION","LS",{"v":1,"d":"1.0"},null,{"$f":"E9*F9","v":0}]
[null,"102-1","MAINTENANCE OF TRAFFIC","LS",{"v":1,"d":"1.0"},null,{"$f":"E10*F10","v":0}]
[null,"104-2","PREVENTION, CONTROL & ABATEMENT OF EROSION AND WATER POLLUTION","LS",{"v":1,"d":"1.0"},null,0]
[null,"110-1-1","CLEARING AND GRUBBING","LS",{"v":1,"d":"1.0"},null,0]
[null,"120-1","REGULAR EXCAVATION","CY",{"v":6580,"d":"6,580.0"},null,0]
[null,"160-4","TYPE B STABILIZATION (LBR-40)","SY",{"v":15278,"d":"15,278.0"},null,0]
[null,"283-711A*","ASHALT MILLINGS DRIVE (8\" THICK), INSTALLATION","SY",{"v":5700,"d":"5,700.0"},null,0]
[null,"283-711B*","ASHALT MILLINGS PATH (6\" THICK), INSTALLATION","SY",{"v":9400,"d":"9,400.0"},null,0]
[null,"334-1-53A","SUPERPAVE ASPHALTIC CONCRETE, LEVELING COURSE","TN",{"v":137,"d":"137.0"},null,0]
[null,"334-1-53B","SUPERPAVE ASPHALTIC CONCRETE, TRAFFIC C (TYPE SP-12.5, 76-22, 1.5\")","TN",{"v":283,"d":"283.0"},null,0]
[null,"425-1-521","INLETS, DITCH BOTTOM, DRAINAGE, TYPE C < 10'","EA",{"v":1,"d":"1.0"},null,0]
[null,"430-175-160","PIPE CULVERT,  RCP 60\",  S/CD","LF",{"v":60,"d":"60.0"},null,0]
[null,"430-175-215","PIPE CULVERT,  12\" x 18\" ERCP, S/CD","LF",{"v":630,"d":"630.0"},null,0]
[null,"430-982-623","MITERED END SECTION,  12\" X 18\" ERCP,  S/CD","EA",{"v":15,"d":"15.0"},null,0]
[null,"520-3","VALLEY GUTTER - CONCRETE - 2' WIDE","LF",{"v":97,"d":"97.0"},null,0]
[null,"522-2","CONCRETE SIDEWALK, FIBER REINFORCED, 3000PSI, 6\" THICK","SY",{"v":181,"d":"181.0"},null,0]
[null,"530-3-3**","RIP RAP, RUBBLE, BANK & SHORE","TN",{"v":210,"d":"210.0"},null,0]
[null,"542-70","CONCRETE BUMPER GUARD (i.e. WHEEL STOPS)","EA",{"v":2,"d":"2.0"},null,0]
[null,"570-1-2","PERFORMANCE TURF, MATCH EXISTING","SY",{"v":23500,"d":"23,500.0"},null,0]
[null,"580-5-26","LANDSCAPE - TREES, CONTAINER GROWN, 100 GAL","EA",{"v":28,"d":"28.0"},null,0]
[null,"700-1-11","SINGLE SIGN POST, F&I, GROUND MOUNT <12 SF (HANDICAP PARKING SIGN)","AS",{"v":2,"d":"2.0"},null,0]
[null,"710-90","PAINTED PAVEMENT MARKINGS - HANDICAP STRIPING","LS",{"v":1,"d":"1.0"},null,0]
[null,"1050-31-206","UTILITY PIPE - POLY VINYL CHLORIDE, SCHEDULE 40 PVC - 6\"","LF",60,null,0]
[null,"999-1","AS-BUILTS, CONSTRUCTION RECORD DRAWINGS","LS",{"v":1,"d":"1.0"},null,0]
[null,"999-2","PERMIT FEES","LS",{"v":1,"d":"1.0"},null,0]
[null,"999-999","8' WIDE PEDESTRIAN BRIDGE (STEEL SPAN) INCL. LANDINGS AND END PILINGS","LS",{"v":1,"d":"1.0"},null,0]
[]
[null,null,"SUB-TOTAL =",{"$nulls":3},{"$f":"SUM(G9:G34)","v":0}]
[null,"999-25A","FORCE ACCOUNT =",{"$nulls":3},{"v":100000,"d":"$100,000.00"}]
[null,null,"TOTAL PROJECT BID AMOUNT (INCLUDING FORCE ACCOUNTS) =",{"$nulls":3},{"$f":"G36+G37","v":{"v":100000,"d":"$100,000.00"}}]
[null,"LS=Lump Sum   AC=Acre   EA=Each   CY=Cubic Yard   SY=Square Yard   TN=Ton   LF=Linear Foot   AS = Assembly"]
[]
[null,"NOTE:  IF THERE IS A DISCREPANCY BETWEEN THE PLANS (SUMMARY OF PAY ITEMS) AND THE ITEMIZED BID SCHEDULE, THE BID SCHEDULE WILL BE UTILIZED FOR BIDDING PURPOSES."]
[]
[null,"TOTAL PROJECT BID AMOUNT IN WORDS"]
[]
[]
[]
[null,null,"                                     "]